[Event "2. Itzehoer Schach Open"]
[Site "Itzehoe, Germany"]
[Date "2023.04.30"]
[Round "3.16"]
[White "Harten, Jan"]
[Black "Hieke, Jonas"]
[Result "1/2-1/2"]
[TimeControl "90 min / 40 Züge + 30 min + 30 Sek pro Zug"]
[WhiteElo "1819"]
[BlackElo "1584"]

1. e4 {[%clk 01:30:56]} {[%emt 00:00:04]} e5 {[%clk 01:30:56]} {[%emt
00:00:04]} 2. Nf3 {[%clk 01:31:12]} {[%emt 00:00:14]} Nc6 {[%clk 01:31:22]}
{[%emt 00:00:04]} 3. Bc4 {[%clk 01:31:21]} {[%emt 00:00:21]} Nf6 {[%clk
01:31:45]} {[%emt 00:00:06]} 4. Nc3 {[%clk 01:31:14]} {[%emt 00:00:39]} Nxe4
{[%clk 01:32:04]} {[%emt 00:00:10]} 5. Nxe4 {[%clk 01:26:39]} {[%emt 00:05:04]}
d5 {[%clk 01:32:29]} {[%emt 00:00:05]} 6. Qe2 {[%clk 01:24:00]} {[%emt
00:03:09]} dxc4 {[%clk 01:27:56]} {[%emt 00:05:04]} 7. Qxc4 {[%clk 01:23:47]}
{[%emt 00:00:42]} Be6 {[%clk 01:28:18]} {[%emt 00:00:07]} 8. Qe2 {[%clk
01:19:58]} {[%emt 00:04:21]} Bg4 {[%clk 01:22:58]} {[%emt 00:05:49]} 9. c3
{[%clk 01:18:39]} {[%emt 00:01:50]} Be7 {[%clk 01:22:27]} {[%emt 00:01:01]} 10.
h3 {[%clk 01:15:30]} {[%emt 00:03:40]} Be6 {[%clk 01:11:31]} {[%emt 00:11:26]}
11. O-O {[%clk 01:08:37]} {[%emt 00:07:23]} O-O {[%clk 01:01:15]} {[%emt
00:10:43]} 12. d3 {[%clk 01:03:14]} {[%emt 00:05:55]} a6 {[%clk 00:51:44]}
{[%emt 00:10:00]} 13. Ng3 {[%clk 00:56:45]} {[%emt 00:06:59]} f6 {[%clk
00:47:54]} {[%emt 00:04:20]} 14. d4 {[%clk 00:55:51]} {[%emt 00:01:25]} Qd5
{[%clk 00:46:02]} {[%emt 00:02:21]} 15. dxe5 {[%clk 00:52:28]} {[%emt
00:03:55]} Nxe5 {[%clk 00:42:36]} {[%emt 00:03:55]} 16. Nd4 {[%clk 00:51:35]}
{[%emt 00:01:22]} Bc5 {[%clk 00:34:36]} {[%emt 00:08:30]} 17. Nxe6 {[%clk
00:46:48]} {[%emt 00:05:18]} Qxe6 {[%clk 00:34:41]} {[%emt 00:00:24]} 18. Be3
{[%clk 00:47:05]} {[%emt 00:00:14]} Qb6 {[%clk 00:33:37]} {[%emt 00:01:31]} 19.
Bf4 {[%clk 00:41:52]} {[%emt 00:05:45]} Ng6 {[%clk 00:25:38]} {[%emt 00:08:28]}
20. Qc4+ {[%clk 00:39:55]} {[%emt 00:02:26]} Rf7 {[%clk 00:25:35]} {[%emt
00:00:34]} 21. b4 {[%clk 00:38:00]} {[%emt 00:02:26]} Bd6 {[%clk 00:23:56]}
{[%emt 00:02:08]} 22. Bxd6 {[%clk 00:36:40]} {[%emt 00:01:51]} Qxd6 {[%clk
00:24:20]} {[%emt 00:00:05]} 23. Rad1 {[%clk 00:36:38]} {[%emt 00:00:32]} Ne5
{[%clk 00:20:56]} {[%emt 00:03:54]} 24. Qb3 {[%clk 00:27:55]} {[%emt 00:09:13]}
1/2-1/2

[Event "2. Itzehoer Schach Open"]
[Site "Itzehoe, Germany"]
[Date "2023.04.30"]
[Round "3.28"]
[White "Wibmer, Michael"]
[Black "Haertel, Leon"]
[Result "1-0"]
[TimeControl "90 min / 40 Züge + 30 min + 30 Sek pro Zug"]
[WhiteElo "1675"]
[BlackElo "1323"]

1. e4 {[%clk 01:30:55]} {[%emt 00:00:04]} c5 {[%clk 01:30:57]} {[%emt
00:00:04]} 2. Nf3 {[%clk 01:31:16]} {[%emt 00:00:09]} Nc6 {[%clk 01:31:22]}
{[%emt 00:00:05]} 3. d4 {[%clk 01:31:30]} {[%emt 00:00:16]} cxd4 {[%clk
01:31:47]} {[%emt 00:00:06]} 4. Nxd4 {[%clk 01:31:53]} {[%emt 00:00:06]} g6
{[%clk 01:32:13]} {[%emt 00:00:05]} 5. c4 {[%clk 01:29:41]} {[%emt 00:02:42]}
Bg7 {[%clk 01:32:09]} {[%emt 00:00:33]} 6. Be3 {[%clk 01:29:59]} {[%emt
00:00:12]} Qb6 {[%clk 01:32:34]} {[%emt 00:00:06]} 7. Nb3 {[%clk 01:10:33]}
{[%emt 00:19:55]} Qd8 {[%clk 01:32:52]} {[%emt 00:00:13]} 8. Nc3 {[%clk
01:10:11]} {[%emt 00:00:52]} Nf6 {[%clk 01:33:12]} {[%emt 00:00:09]} 9. Be2
{[%clk 01:09:02]} {[%emt 00:01:38]} O-O {[%clk 01:33:26]} {[%emt 00:00:16]} 10.
O-O {[%clk 01:07:33]} {[%emt 00:02:00]} d6 {[%clk 01:32:52]} {[%emt 00:01:04]}
11. Rc1 {[%clk 00:58:08]} {[%emt 00:09:56]} Be6 {[%clk 01:31:19]} {[%emt
00:02:03]} 12. Nd4 {[%clk 00:57:05]} {[%emt 00:01:31]} Nxd4 {[%clk 01:24:55]}
{[%emt 00:06:54]} 13. Bxd4 {[%clk 00:56:55]} {[%emt 00:00:41]} Nd7 {[%clk
01:20:14]} {[%emt 00:05:10]} 14. Bxg7 {[%clk 00:49:06]} {[%emt 00:08:20]} Kxg7
{[%clk 01:20:31]} {[%emt 00:00:14]} 15. Nd5 {[%clk 00:49:02]} {[%emt 00:00:33]}
Nc5 {[%clk 01:18:59]} {[%emt 00:02:01]} 16. Bf3 {[%clk 00:46:31]} {[%emt
00:03:02]} Rc8 {[%clk 01:13:35]} {[%emt 00:05:52]} 17. b4 {[%clk 00:36:35]}
{[%emt 00:10:28]} Nd7 {[%clk 01:13:07]} {[%emt 00:00:58]} 18. Qd4+ {[%clk
00:34:04]} {[%emt 00:03:01]} Ne5 {[%clk 01:12:32]} {[%emt 00:01:00]} 19. Be2
{[%clk 00:33:39]} {[%emt 00:01:00]} Bxd5 {[%clk 01:07:06]} {[%emt 00:05:57]} 20.
exd5 {[%clk 00:33:00]} {[%emt 00:01:09]} Kg8 {[%clk 01:00:30]} {[%emt
00:07:05]} 21. f4 {[%clk 00:30:03]} {[%emt 00:03:26]} Nd7 {[%clk 01:00:29]}
{[%emt 00:00:32]} 22. Bg4 {[%clk 00:29:41]} {[%emt 00:00:52]} f5 {[%clk
01:00:34]} {[%emt 00:00:25]} 23. Bf3 {[%clk 00:26:16]} {[%emt 00:03:55]} b6
{[%clk 01:00:35]} {[%emt 00:00:29]} 24. Rfe1 {[%clk 00:24:05]} {[%emt
00:02:41]} Rc7 {[%clk 00:57:21]} {[%emt 00:03:43]} 25. Rc3 {[%clk 00:23:11]}
{[%emt 00:01:25]} Rf7 {[%clk 00:56:54]} {[%emt 00:00:57]} 26. a4 {[%clk
00:13:08]} {[%emt 00:10:34]} a5 {[%clk 00:55:33]} {[%emt 00:01:51]} 27. bxa5
{[%clk 00:12:12]} {[%emt 00:01:26]} bxa5 {[%clk 00:55:57]} {[%emt 00:00:05]} 28.
Rb1 {[%clk 00:07:21]} {[%emt 00:05:19]} Nc5 {[%emt 00:01:09]} 29. Rb5 {[%clk
00:07:02]} Rc8 {[%clk 00:56:07]} {[%emt 00:00:25]} 30. Rc1 {[%clk 00:04:34]}
{[%emt 00:03:00]} Qc7 {[%clk 00:55:08]} {[%emt 00:01:34]} 31. Ra1 {[%clk
00:01:45]} {[%emt 00:03:19]} Rff8 {[%clk 00:50:02]} {[%emt 00:05:36]} 32. Qe3
{[%clk 00:01:18]} {[%emt 00:00:56]} Rfe8 {[%clk 00:49:24]} {[%emt 00:01:09]} 33.
Rab1 {[%clk 00:00:44]} {[%emt 00:01:04]} Rcd8 {[%clk 00:41:02]} {[%emt
00:08:51]} 34. Qd2 {[%clk 00:00:37]} {[%emt 00:00:38]} Ra8 {[%clk 00:40:58]}
{[%emt 00:00:34]} 35. Kh1 {[%clk 00:00:47]} {[%emt 00:00:21]} Ra7 {[%clk
00:38:07]} {[%emt 00:03:20]} 36. Qc2 {[%clk 00:00:38]} {[%emt 00:00:38]} Rc8
{[%clk 00:35:18]} {[%emt 00:03:18]} 37. h3 {[%clk 00:00:47]} {[%emt 00:00:23]}
Nd7 {[%clk 00:31:27]} {[%emt 00:04:21]} 38. Be2 {[%clk 00:01:03]} {[%emt
00:00:14]} Nc5 {[%clk 00:31:01]} {[%emt 00:00:56]} 39. Bf3 {[%clk 00:01:29]}
{[%emt 00:00:05]} Nd7 {[%clk 00:30:57]} {[%emt 00:00:33]} 40. Be2 {[%clk
00:01:32]} {[%emt 00:00:27]} Nf6 {[%clk 00:29:27]} {[%emt 00:02:01]} 41. Bd3
{[%clk 00:28:51]} {[%emt 00:03:11]} Nd7 {[%clk 00:57:33]} {[%emt 00:02:24]} 42.
Qe2 {[%clk 00:27:04]} {[%emt 00:02:16]} Nc5 {[%clk 00:56:12]} {[%emt 00:01:52]}
43. Bc2 {[%clk 00:24:05]} {[%emt 00:03:27]} Re8 {[%clk 00:54:16]} {[%emt
00:02:27]} 44. Rb6 {[%clk 00:19:20]} {[%emt 00:05:16]} Rb7 {[%clk 00:53:42]}
{[%emt 00:01:03]} 45. Rxb7 {[%clk 00:17:00]} {[%emt 00:02:51]} Nxb7 {[%clk
00:54:07]} {[%emt 00:00:05]} 46. Qd2 {[%clk 00:14:07]} {[%emt 00:03:22]} Nc5
{[%clk 00:49:30]} {[%emt 00:05:07]} 47. Rb5 {[%clk 00:13:44]} {[%emt 00:00:53]}
Ra8 {[%clk 00:49:32]} {[%emt 00:00:27]} 48. Qe1 {[%clk 00:13:24]} {[%emt
00:00:50]} Kf8 {[%clk 00:47:35]} {[%emt 00:02:28]} 49. Qb1 {[%clk 00:12:10]}
{[%emt 00:01:44]} Qd7 {[%clk 00:44:03]} {[%emt 00:04:01]} 50. Qb2 {[%clk
00:11:01]} {[%emt 00:01:39]} Kf7 {[%clk 00:44:21]} {[%emt 00:00:13]} 51. Qc3
{[%clk 00:10:25]} {[%emt 00:01:06]} Qd8 {[%clk 00:43:16]} {[%emt 00:01:33]} 52.
Qe1 {[%clk 00:09:03]} {[%emt 00:01:54]} Qc7 {[%clk 00:31:39]} {[%emt 00:12:08]}
53. g4 {[%clk 00:06:55]} {[%emt 00:02:37]} fxg4 {[%clk 00:31:47]} {[%emt
00:00:22]} 54. hxg4 {[%clk 00:06:49]} {[%emt 00:00:37]} Qd7 {[%clk 00:31:48]}
{[%emt 00:00:27]} 55. Qh4 {[%clk 00:06:15]} {[%emt 00:01:05]} Kg7 {[%clk
00:31:41]} {[%emt 00:00:37]} 56. f5 {[%clk 00:04:41]} {[%emt 00:02:05]} Rh8
{[%clk 00:29:40]} {[%emt 00:02:30]} 57. Qg5 {[%clk 00:03:45]} {[%emt 00:01:24]}
Qd8 {[%clk 00:25:53]} {[%emt 00:04:20]} 58. Kg2 {[%clk 00:03:29]} {[%emt
00:00:45]} Qe8 {[%clk 00:25:34]} {[%emt 00:00:49]} 59. Rxa5 {[%clk 00:02:26]}
{[%emt 00:01:34]} Nd7 {[%clk 00:23:54]} {[%emt 00:02:10]} 60. Ra7 {[%clk
00:02:21]} {[%emt 00:00:35]} Nf6 {[%clk 00:24:02]} {[%emt 00:00:22]} 61. Kf3
{[%clk 00:01:33]} {[%emt 00:01:17]} h5 {[%clk 00:24:13]} {[%emt 00:00:19]} 62.
gxh5 {[%clk 00:01:15]} {[%emt 00:00:48]} Rxh5 {[%clk 00:24:29]} {[%emt
00:00:14]} 63. Qxg6+ {[%clk 00:01:34]} {[%emt 00:00:12]} Qxg6 {[%clk 00:24:31]}
{[%emt 00:00:28]} 64. fxg6 {[%clk 00:02:02]} {[%emt 00:00:02]} Rh3+ {[%clk
00:24:40]} {[%emt 00:00:21]} 65. Kg2 {[%clk 00:01:48]} {[%emt 00:00:43]} Re3
{[%clk 00:24:30]} {[%emt 00:00:40]} 66. a5 {[%clk 00:01:18]} {[%emt 00:01:01]}
Kf8 {[%clk 00:24:35]} {[%emt 00:00:25]} 67. Ba4 {[%clk 00:01:21]} {[%emt
00:00:27]} Ra3 {[%clk 00:24:52]} {[%emt 00:00:13]} 68. Bb5 {[%clk 00:01:29]}
{[%emt 00:00:20]} Ra2+ {[%clk 00:25:07]} {[%emt 00:00:17]} 69. Kf3 {[%clk
00:01:44]} {[%emt 00:00:13]} Ra3+ {[%clk 00:25:31]} {[%emt 00:00:08]} 70. Ke2
{[%clk 00:01:27]} {[%emt 00:00:44]} 1-0

[Event "2. Itzehoer Schach Open"]
[Site "Itzehoe, Germany"]
[Date "2023.04.30"]
[Round "3.27"]
[White "Junge, Julia Marie"]
[Black "Wolf, Finn"]
[Result "0-1"]
[TimeControl "90 min / 40 Züge + 30 min + 30 Sek pro Zug"]
[WhiteElo "1367"]
[BlackElo "1677"]

1. e4 {[%clk 01:30:52]} {[%emt 00:00:08]} c5 {[%clk 01:30:54]} {[%emt
00:00:06]} 2. Nf3 {[%clk 01:31:01]} {[%emt 00:00:21]} d6 {[%clk 01:31:15]}
{[%emt 00:00:09]} 3. d4 {[%clk 01:30:28]} {[%emt 00:01:02]} cxd4 {[%clk
01:31:38]} {[%emt 00:00:07]} 4. Nxd4 {[%clk 01:30:52]} {[%emt 00:00:06]} Nf6
{[%clk 01:32:02]} {[%emt 00:00:05]} 5. Nc3 {[%clk 01:30:36]} {[%emt 00:00:47]}
a6 {[%clk 01:32:25]} {[%emt 00:00:07]} 6. Be3 {[%clk 01:29:55]} {[%emt
00:01:11]} e5 {[%clk 01:32:36]} {[%emt 00:00:19]} 7. Nb3 {[%clk 01:27:07]}
{[%emt 00:03:19]} Be6 {[%clk 01:32:56]} {[%emt 00:00:09]} 8. Nd5 {[%clk
01:24:20]} {[%emt 00:03:17]} Bxd5 {[%clk 01:25:14]} {[%emt 00:08:12]} 9. exd5
{[%clk 01:24:21]} {[%emt 00:00:29]} Nbd7 {[%clk 01:24:31]} {[%emt 00:01:12]} 10.
Be2 {[%clk 01:22:28]} {[%emt 00:02:24]} Be7 {[%clk 01:23:22]} {[%emt 00:01:38]}
11. O-O {[%clk 01:20:58]} {[%emt 00:02:00]} O-O {[%clk 01:23:31]} {[%emt
00:00:21]} 12. f4 {[%clk 01:19:32]} {[%emt 00:01:56]} exf4 {[%clk 01:14:41]}
{[%emt 00:09:20]} 13. Rxf4 {[%clk 01:15:36]} {[%emt 00:04:26]} Re8 {[%clk
01:09:00]} {[%emt 00:06:11]} 14. c4 {[%clk 01:11:36]} {[%emt 00:04:31]} Rc8
{[%clk 01:07:37]} {[%emt 00:01:53]} 15. Nd4 {[%clk 01:10:09]} {[%emt 00:01:57]}
Bf8 {[%clk 01:05:45]} {[%emt 00:02:21]} 16. Bf2 {[%clk 01:07:26]} {[%emt
00:03:14]} Re4 {[%clk 00:53:58]} {[%emt 00:12:16]} 17. Qd2 {[%clk 01:01:55]}
{[%emt 00:06:02]} Rxf4 {[%clk 00:45:47]} {[%emt 00:08:41]} 18. Qxf4 {[%clk
01:02:15]} {[%emt 00:00:10]} Ne5 {[%clk 00:45:47]} {[%emt 00:00:29]} 19. b3
{[%clk 00:59:44]} {[%emt 00:03:02]} Ng6 {[%clk 00:43:01]} {[%emt 00:03:16]} 20.
Qf3 {[%clk 00:57:42]} {[%emt 00:02:32]} Qd7 {[%clk 00:42:04]} {[%emt 00:01:26]}
21. Qf5 {[%clk 00:54:59]} {[%emt 00:03:13]} Qxf5 {[%clk 00:35:29]} {[%emt
00:07:05]} 22. Nxf5 {[%clk 00:55:16]} {[%emt 00:00:13]} Ne5 {[%clk 00:35:25]}
{[%emt 00:00:34]} 23. Bg3 {[%clk 00:54:16]} {[%emt 00:01:30]} Nfd7 {[%clk
00:34:33]} {[%emt 00:01:21]} 24. Bh4 {[%clk 00:51:33]} {[%emt 00:03:15]} Re8
{[%clk 00:34:25]} {[%emt 00:00:38]} 25. Re1 {[%clk 00:45:48]} {[%emt 00:06:13]}
g6 {[%clk 00:27:06]} {[%emt 00:07:51]} 26. Nd4 {[%clk 00:44:04]} {[%emt
00:02:14]} Bg7 {[%clk 00:27:19]} {[%emt 00:00:17]} 27. Bg4 {[%clk 00:42:42]}
{[%emt 00:01:51]} Kf8 {[%clk 00:20:45]} {[%emt 00:07:05]} 28. Bg3 {[%clk
00:39:07]} {[%emt 00:04:05]} Nc5 {[%clk 00:13:14]} {[%emt 00:08:01]} 29. Be2
{[%clk 00:34:06]} {[%emt 00:05:31]} h5 {[%clk 00:12:46]} {[%emt 00:00:58]} 30.
Nf3 {[%clk 00:32:31]} {[%emt 00:02:04]} Nxf3+ {[%clk 00:10:43]} {[%emt
00:02:33]} 31. Bxf3 {[%clk 00:32:39]} {[%emt 00:00:23]} Rxe1+ {[%clk 00:10:49]}
{[%emt 00:00:24]} 32. Bxe1 {[%clk 00:33:04]} {[%emt 00:00:05]} Be5 {[%clk
00:10:35]} {[%emt 00:00:43]} 33. g4 {[%clk 00:31:52]} {[%emt 00:01:43]} hxg4
{[%clk 00:10:11]} {[%emt 00:00:54]} 34. Bxg4 {[%clk 00:32:16]} {[%emt
00:00:05]} f5 {[%clk 00:10:27]} {[%emt 00:00:13]} 35. Be2 {[%clk 00:31:09]}
{[%emt 00:01:38]} Kg7 {[%clk 00:09:22]} {[%emt 00:01:36]} 36. b4 {[%clk
00:31:01]} {[%emt 00:00:38]} Nd7 {[%clk 00:08:58]} {[%emt 00:00:53]} 37. h4
{[%clk 00:30:07]} {[%emt 00:01:25]} b6 {[%clk 00:08:22]} {[%emt 00:01:06]} 38.
Kg2 {[%clk 00:28:23]} {[%emt 00:02:13]} Bd4 {[%clk 00:06:50]} {[%emt 00:02:03]}
39. Bg3 {[%clk 00:24:50]} {[%emt 00:04:03]} Ne5 {[%clk 00:06:59]} {[%emt
00:00:21]} 40. a4 {[%clk 00:23:47]} {[%emt 00:01:33]} Kf6 {[%clk 00:05:58]}
{[%emt 00:01:30]} 41. Bf2 {[%clk 00:22:52]} {[%emt 00:01:25]} Bxf2 {[%clk
00:05:23]} {[%emt 00:01:05]} 42. Kxf2 {[%clk 00:23:18]} {[%emt 00:00:05]} a5
{[%clk 00:05:28]} {[%emt 00:00:25]} 43. bxa5 {[%clk 00:21:56]} {[%emt
00:01:52]} bxa5 {[%clk 00:05:51]} {[%emt 00:00:07]} 44. Ke3 {[%clk 00:21:52]}
{[%emt 00:00:33]} Nd7 {[%clk 00:05:15]} {[%emt 00:01:06]} 45. Kd4 {[%clk
00:17:28]} {[%emt 00:04:54]} Nc5 {[%clk 00:04:23]} {[%emt 00:01:22]} 46. Bd1
{[%clk 00:16:59]} {[%emt 00:01:00]} g5 {[%clk 00:03:01]} {[%emt 00:01:51]} 47.
hxg5+ {[%clk 00:16:37]} {[%emt 00:00:52]} Kxg5 {[%clk 00:03:22]} {[%emt
00:00:09]} 48. Ke3 {[%clk 00:15:01]} {[%emt 00:02:06]} f4+ {[%clk 00:02:31]}
{[%emt 00:01:21]} 49. Kf3 {[%clk 00:14:50]} {[%emt 00:00:42]} Kf5 {[%clk
00:02:28]} {[%emt 00:00:33]} 50. Bc2+ {[%clk 00:12:38]} {[%emt 00:02:41]} Ke5
{[%clk 00:02:47]} {[%emt 00:00:10]} 51. Bd1 {[%clk 00:12:37]} {[%emt 00:00:31]}
Nd3 {[%clk 00:29:18]} {[%emt 00:03:58]} 52. Ke2 {[%clk 00:39:50]} {[%emt
00:03:18]} Nb2 {[%clk 00:28:42]} {[%emt 00:01:05]} 53. Bb3 {[%clk 00:39:49]}
{[%emt 00:00:33]} Kd4 {[%clk 00:28:21]} {[%emt 00:00:50]} 54. Kf3 {[%clk
00:39:38]} {[%emt 00:00:41]} Nxc4 {[%clk 00:25:28]} {[%emt 00:03:23]} 55. Kxf4
{[%clk 00:39:13]} {[%emt 00:00:55]} Kxd5 {[%clk 00:25:50]} {[%emt 00:00:09]} 56.
Kf5 {[%clk 00:37:59]} {[%emt 00:01:43]} Kd4 {[%clk 00:25:10]} {[%emt 00:01:09]}
57. Ke6 {[%clk 00:38:02]} {[%emt 00:00:28]} d5 {[%clk 00:25:06]} {[%emt
00:00:35]} 58. Kd7 {[%clk 00:37:35]} {[%emt 00:00:57]} Kc3 {[%clk 00:24:21]}
{[%emt 00:01:14]} 59. Bd1 {[%clk 00:36:37]} {[%emt 00:01:27]} Nb2 {[%clk
00:22:40]} {[%emt 00:02:12]} 60. Kc6 {[%clk 00:30:19]} {[%emt 00:06:48]} Nxd1
{[%clk 00:19:30]} {[%emt 00:03:40]} 61. Kxd5 {[%clk 00:29:39]} {[%emt
00:01:10]} Kb4 {[%clk 00:19:50]} {[%emt 00:00:11]} 62. Kd4 {[%clk 00:30:00]}
{[%emt 00:00:09]} Kxa4 {[%clk 00:20:14]} {[%emt 00:00:06]} 63. Kd3 {[%clk
00:30:09]} {[%emt 00:00:21]} Kb3 {[%clk 00:20:30]} {[%emt 00:00:13]} 64. Kd2
{[%clk 00:30:26]} {[%emt 00:00:13]} a4 {[%clk 00:20:36]} {[%emt 00:00:25]} 65.
Kc1 {[%clk 00:30:35]} {[%emt 00:00:20]} Nc3 {[%clk 00:20:54]} {[%emt 00:00:12]}
0-1

[Event "2. Itzehoer Schach Open"]
[Site "Itzehoe, Germany"]
[Date "2023.04.30"]
[Round "3.10"]
[White "Helms, Finn"]
[Black "Vieito, Luis-Maria"]
[Result "1-0"]
[TimeControl "90 min / 40 Züge + 30 min + 30 Sek pro Zug"]
[WhiteElo "2002"]
[BlackElo "1773"]

1. e4 {[%clk 01:30:59]} e5 {[%clk 01:30:43]} {[%emt 00:00:18]} 2. Nf3 {[%clk
01:31:27]} {[%emt 00:00:02]} Nc6 {[%clk 01:31:00]} {[%emt 00:00:13]} 3. Bc4
{[%clk 01:31:52]} {[%emt 00:00:04]} Be7 {[%clk 01:30:50]} {[%emt 00:00:40]} 4.
O-O {[%clk 01:31:59]} {[%emt 00:00:23]} Nf6 {[%clk 01:31:12]} {[%emt 00:00:08]}
5. d4 {[%clk 01:29:10]} {[%emt 00:03:19]} d6 {[%clk 01:31:06]} {[%emt
00:00:36]} 6. Nc3 {[%clk 01:28:40]} {[%emt 00:01:00]} O-O {[%clk 01:31:11]}
{[%emt 00:00:25]} 7. h3 {[%clk 01:26:03]} {[%emt 00:03:07]} Nxe4 {[%clk
01:24:31]} {[%emt 00:07:10]} 8. Nxe4 {[%clk 01:13:47]} {[%emt 00:12:47]} d5
{[%clk 01:24:52]} {[%emt 00:00:08]} 9. Bxd5 {[%clk 01:08:40]} {[%emt 00:05:37]}
Qxd5 {[%clk 01:25:12]} {[%emt 00:00:11]} 10. Nc3 {[%clk 01:09:02]} {[%emt
00:00:08]} Qa5 {[%clk 01:23:43]} {[%emt 00:01:59]} 11. d5 {[%clk 01:06:09]}
{[%emt 00:03:23]} Rd8 {[%clk 01:17:14]} {[%emt 00:06:58]} 12. Qe2 {[%clk
00:54:38]} {[%emt 00:12:01]} Nb4 {[%clk 01:15:03]} {[%emt 00:02:41]} 13. Nxe5
{[%clk 00:37:07]} {[%emt 00:18:01]} Bf5 {[%clk 01:08:56]} {[%emt 00:06:37]} 14.
Nc4 {[%clk 00:34:30]} {[%emt 00:03:07]} Qa6 {[%clk 01:09:24]} {[%emt 00:00:02]}
15. Bf4 {[%clk 00:32:28]} {[%emt 00:02:33]} Bf6 {[%clk 01:03:16]} {[%emt
00:06:37]} 16. Ne3 {[%clk 00:27:17]} {[%emt 00:05:41]} Bxc3 {[%clk 00:45:00]}
{[%emt 00:18:46]} 17. Qxa6 {[%clk 00:27:22]} {[%emt 00:00:25]} bxa6 {[%clk
00:45:15]} {[%emt 00:00:16]} 18. Bxc7 {[%clk 00:23:24]} {[%emt 00:04:27]} Rd7
{[%clk 00:39:53]} {[%emt 00:05:52]} 19. bxc3 {[%clk 00:22:18]} {[%emt
00:01:36]} Nxd5 {[%clk 00:39:21]} {[%emt 00:01:03]} 20. Nxf5 {[%clk 00:17:51]}
{[%emt 00:04:57]} Rxc7 {[%clk 00:39:30]} {[%emt 00:00:20]} 21. Rfe1 {[%clk
00:15:28]} {[%emt 00:02:53]} Nxc3 {[%clk 00:39:31]} {[%emt 00:00:30]} 22. Re5
{[%clk 00:14:51]} {[%emt 00:01:07]} g6 {[%clk 00:38:48]} {[%emt 00:01:11]} 23.
Ne3 {[%clk 00:13:25]} {[%emt 00:01:56]} Rb8 {[%clk 00:33:35]} {[%emt 00:05:44]}
24. g4 {[%clk 00:11:32]} {[%emt 00:02:23]} Rb5 {[%clk 00:33:35]} {[%emt
00:00:31]} 25. Re8+ {[%clk 00:11:33]} {[%emt 00:00:28]} Kg7 {[%clk 00:34:02]}
{[%emt 00:00:02]} 26. h4 {[%clk 00:11:15]} {[%emt 00:00:48]} h5 {[%clk
00:33:13]} {[%emt 00:01:20]} 27. a4 {[%clk 00:08:04]} {[%emt 00:03:42]} Rb4
{[%clk 00:33:06]} {[%emt 00:00:37]} 28. gxh5 {[%clk 00:07:08]} {[%emt
00:01:26]} Rxh4 {[%clk 00:32:09]} {[%emt 00:01:25]} 29. hxg6 {[%clk 00:07:11]}
{[%emt 00:00:29]} fxg6 {[%clk 00:32:08]} {[%emt 00:00:30]} 30. Kg2 {[%clk
00:06:20]} {[%emt 00:01:21]} Rh5 {[%clk 00:28:42]} {[%emt 00:03:55]} 31. Ra3
{[%clk 00:05:57]} {[%emt 00:00:54]} Rg5+ {[%clk 00:28:27]} {[%emt 00:00:45]} 32.
Kf1 {[%clk 00:05:58]} {[%emt 00:00:29]} Ra5 {[%clk 00:26:54]} {[%emt 00:02:04]}
33. Rb3 {[%clk 00:05:37]} {[%emt 00:00:50]} Rxa4 {[%clk 00:26:22]} {[%emt
00:01:02]} 34. Rbb8 {[%clk 00:05:50]} {[%emt 00:00:16]} Rd7 {[%clk 00:20:29]}
{[%emt 00:06:24]} 35. f3 {[%clk 00:03:54]} {[%emt 00:02:26]} Ra1+ {[%clk
00:19:11]} {[%emt 00:01:48]} 36. Kg2 {[%clk 00:03:49]} {[%emt 00:00:34]} Rd2+
{[%clk 00:19:40]} {[%emt 00:00:02]} 37. Kh3 {[%clk 00:04:01]} {[%emt 00:00:18]}
Rh1+ {[%clk 00:19:46]} {[%emt 00:00:24]} 38. Kg3 {[%clk 00:04:24]} {[%emt
00:00:07]} Ne2+ {[%clk 00:20:03]} {[%emt 00:00:14]} 39. Kg2 {[%clk 00:04:47]}
{[%emt 00:00:07]} Rh5 {[%clk 00:16:49]} {[%emt 00:03:43]} 40. Ng4 {[%clk
00:00:47]} {[%emt 00:04:31]} Nf4+ {[%clk 00:16:48]} {[%emt 00:00:31]} 41. Kg3
{[%clk 00:29:53]} {[%emt 00:01:23]} Ne2+ {[%clk 00:43:23]} {[%emt 00:03:56]} 42.
Kf2 {[%clk 00:29:45]} {[%emt 00:00:37]} Nc3+ {[%clk 00:43:26]} {[%emt
00:00:27]} 43. Ke3 {[%clk 00:27:36]} {[%emt 00:02:39]} Re2+ {[%clk 00:40:42]}
{[%emt 00:03:15]} 44. Kd3 {[%clk 00:26:02]} {[%emt 00:02:03]} Rxe8 {[%clk
00:40:58]} {[%emt 00:00:14]} 45. Rxe8 {[%clk 00:26:20]} {[%emt 00:00:12]} Kf7
{[%clk 00:41:16]} {[%emt 00:00:11]} 46. Ra8 {[%clk 00:26:06]} {[%emt 00:00:45]}
Nb5 {[%clk 00:41:33]} {[%emt 00:00:13]} 47. c4 {[%clk 00:26:24]} {[%emt
00:00:11]} Nd6 {[%clk 00:31:34]} {[%emt 00:10:30]} 48. Rxa7+ {[%clk 00:26:27]}
{[%emt 00:00:27]} Ke6 {[%clk 00:32:03]} {[%emt 00:00:01]} 49. Rxa6 {[%clk
00:26:30]} {[%emt 00:00:28]} Rc5 {[%clk 00:32:30]} {[%emt 00:00:02]} 50. Nf2
{[%clk 00:25:59]} {[%emt 00:01:01]} Rxc4 {[%clk 00:31:43]} {[%emt 00:01:17]} 51.
Rxd6+ {[%clk 00:25:36]} {[%emt 00:00:53]} Kxd6 {[%clk 00:32:12]} {[%emt
00:00:02]} 52. Kxc4 {[%clk 00:26:04]} {[%emt 00:00:01]} Ke5 {[%clk 00:32:21]}
{[%emt 00:00:20]} 53. Kd3 {[%clk 00:26:28]} {[%emt 00:00:06]} Kf4 {[%clk
00:32:47]} {[%emt 00:00:04]} 54. Ke2 {[%clk 00:26:54]} {[%emt 00:00:06]} g5
{[%clk 00:33:05]} {[%emt 00:00:11]} 55. Ng4 {[%clk 00:27:21]} {[%emt 00:00:02]}
Kg3 {[%clk 00:32:35]} {[%emt 00:01:01]} 56. Ke3 {[%clk 00:27:45]} {[%emt
00:00:06]} Kg2 {[%clk 00:33:00]} {[%emt 00:00:05]} 57. Ke4 {[%clk 00:27:58]}
{[%emt 00:00:17]} Kg3 {[%clk 00:33:29]} {[%emt 00:00:02]} 58. Ne5 {[%clk
00:28:14]} {[%emt 00:00:13]} Kh4 {[%clk 00:33:35]} {[%emt 00:00:23]} 59. Kf5
{[%clk 00:28:29]} {[%emt 00:00:16]} Kh5 {[%clk 00:34:03]} {[%emt 00:00:02]} 1-0